fUST/lending_fUST_20240818
["ID","MTS","AMOUNT","RATE_DAILY","PERIOD"]
[335206157,1723978254916,-500.0,0.00016986,2]
[335206158,1723978254926,-500.0,0.00016986,2]
[335206159,1723978254936,-802.34,0.00016986,2]
[335206160,1723978254946,-515.16952851,0.00016986,2]
[335206161,1723978254955,-751.63,0.00016986,2]
[335206162,1723978254965,-500.0,0.00016986,2]
[335206163,1723978254975,-500.0,0.00016986,2]
[335206164,1723978254985,-508.92,0.00016986,2]
[335206165,1723978254995,-500.0,0.00016986,2]
[335206166,1723978255004,-500.0,0.00016986,2]
[335206167,1723978255013,-459.05097986,0.00016986,2]
[335206168,1723978255023,-500.0,0.00016986,2]
[335206169,1723978255032,-500.0,0.00016986,2]
[335206170,1723978255041,-500.0,0.00016986,2]
[335206171,1723978255050,-500.0,0.00016986,2]
[335206172,1723978255061,-500.0,0.00016986,2]
[335206173,1723978255072,-500.0,0.00016986,2]
[335206174,1723978255081,-500.0,0.00016986,2]
[335206175,1723978255091,-500.0,0.00016986,2]
[335206176,1723978255100,-500.0,0.00016986,2]
[335206177,1723978255109,-500.0,0.00016986,2]
[335206178,1723978255118,-587.16184139,0.00016986,2]
[335206179,1723978255128,-500.0,0.00016986,2]
[335206180,1723978255137,-500.0,0.00016986,2]
[335206181,1723978255146,-543.71684572,0.00016986,2]
[335206182,1723978255155,-500.0,0.00016986,2]
[335206183,1723978255165,-546.39,0.00016986,2]
[335206184,1723978255174,-500.0,0.00016986,2]
[335206185,1723978255184,-500.0,0.00016986,2]
[335206186,1723978255193,-151.0,0.00016986,2]
[335206187,1723978255202,-504.61,0.00016986,2]
[335206188,1723978255212,-500.0,0.00016986,2]
[335206189,1723978255220,-959.41,0.00016986,2]
[335206190,1723978255230,-151.0,0.00016986,2]
[335206191,1723978255239,-742.34,0.00016986,2]
[335206192,1723978255250,-500.0,0.00016986,2]
[335206193,1723978255260,-500.0,0.00016986,2]
[335206194,1723978255269,-717.95,0.00016986,2]
[335206195,1723978255279,-599.76,0.00016986,2]
[335206196,1723978255288,-706.31,0.00016986,2]
[335206197,1723978255298,-500.0,0.00016986,2]
[335206198,1723978255307,-500.0,0.00016986,2]
[335206199,1723978255316,-500.0,0.00016986,2]
[335206200,1723978255328,-505.44072963,0.00016986,2]
[335206201,1723978255338,-981.51,0.00016986,2]
[335206202,1723978255347,-500.0,0.00016986,2]
[335206203,1723978255357,-560.22,0.00016986,2]
[335206204,1723978255366,-500.0,0.00016986,2]
[335206205,1723978255376,-500.0,0.00016986,2]
[335206206,1723978255385,-500.0,0.00016986,2]
[335206207,1723978255395,-505.51322599,0.00016986,2]
[335206208,1723978255405,-664.29,0.00016986,2]
[335206209,1723978255414,-500.0,0.00016986,2]
[335206210,1723978255423,-500.0,0.00016986,2]
[335206211,1723978255434,-500.0,0.00016986,2]
[335206212,1723978255443,-500.0,0.00016986,2]
[335206213,1723978255453,-500.0,0.00016986,2]
[335206214,1723978255462,-500.0,0.00016986,2]
[335206215,1723978255472,-656.15,0.00016986,2]
[335206216,1723978255481,-793.32,0.00016986,2]
[335206217,1723978255491,-500.0,0.00016986,2]
[335206218,1723978255500,-893.97,0.00016986,2]
[335206219,1723978255510,-500.0,0.00016986,2]
[335206220,1723978255519,-500.0,0.00016986,2]
[335206221,1723978255529,-500.0,0.00016986,2]
[335206222,1723978255539,-500.0,0.00016986,2]
[335206223,1723978255549,-500.0,0.00016986,2]
[335206224,1723978255558,-500.0,0.00016986,2]
[335206225,1723978255567,-569.61,0.00016986,2]
[335206226,1723978255577,-500.0,0.00016986,2]
[335206227,1723978255587,-535.0,0.00016986,2]
[335206228,1723978255596,-500.0,0.00016986,2]
[335206229,1723978255605,-500.0,0.00016986,2]
[335206230,1723978255616,-500.0,0.00016986,2]
[335206231,1723978255625,-500.0,0.00016986,2]
[335206232,1723978255635,-500.0,0.00016986,2]
[335206233,1723978255645,-500.0,0.00016986,2]
[335206234,1723978255654,-500.0,0.00016986,2]
[335206235,1723978255664,-500.0,0.00016986,2]
[335206236,1723978255673,-500.0,0.00016986,2]
[335206237,1723978255683,-500.0,0.00016986,2]
[335206238,1723978255692,-500.0,0.00016986,2]
[335206239,1723978255701,-291.37591361,0.00016986,2]
[335206240,1723978255710,-500.0,0.00016986,2]
[335206241,1723978255720,-500.0,0.00016986,2]
[335206242,1723978255730,-500.0,0.00016986,2]
[335206243,1723978255739,-500.0,0.00016986,2]
[335206244,1723978255748,-1113.57,0.00016986,2]
[335206245,1723978255758,-500.0,0.00016986,2]
[335206246,1723978255767,-500.0,0.00016986,2]
[335206247,1723978255777,-511.71388693,0.00016986,2]
[335206248,1723978255787,-500.0,0.00016986,2]
[335206249,1723978255796,-934.37,0.00016986,2]
[335206250,1723978255811,-524.65,0.00016986,2]
[335206251,1723978255824,-500.0,0.00016986,2]
[335206252,1723978255839,-500.0,0.00016986,2]
[335206253,1723978255850,-700.31,0.00016986,2]
[335206254,1723978255859,-500.0,0.00016986,2]
[335206255,1723978255868,-500.0,0.00016986,2]
[335206256,1723978255880,-500.0,0.00016986,2]
[335206257,1723978255890,-798.05,0.00016986,2]
[335206258,1723978255899,-500.0,0.00016986,2]
[335206259,1723978255909,-500.0,0.00016986,2]
[335206260,1723978255918,-500.0,0.00016986,2]
[335206261,1723978255928,-500.0,0.00016986,2]
[335206262,1723978255937,-500.0,0.00016986,2]
[335206263,1723978255947,-559.48,0.00016986,2]
[335206264,1723978255956,-537.42185925,0.00016986,2]
[335206265,1723978255965,-500.0,0.00016986,2]
[335206266,1723978255975,-500.0,0.00016986,2]
[335206267,1723978255985,-500.0,0.00016986,2]
[335206268,1723978255994,-500.0,0.00016986,2]
[335206269,1723978256004,-1000.0,0.00016986,2]
[335206270,1723978256014,-500.0,0.00016986,2]
[335206271,1723978256024,-523.53726131,0.00016986,2]
[335206272,1723978256034,-500.0,0.00016986,2]
[335206273,1723978256043,-500.0,0.00016986,2]
[335206274,1723978256052,-500.0,0.00016986,2]
[335206275,1723978256062,-500.0,0.00016986,2]
[335206276,1723978256075,-500.0,0.00016986,2]
[335206277,1723978256084,-500.0,0.00016986,2]
[335206278,1723978256093,-500.0,0.00016986,2]
[335206279,1723978256102,-500.0,0.00016986,2]
[335206280,1723978256113,-819.13,0.00016986,2]
[335206281,1723978256122,-640.2,0.00016986,2]
[335206282,1723978256132,-500.0,0.00016986,2]
[335206283,1723978256143,-500.0,0.00016986,2]
[335206284,1723978256156,-514.58,0.00016986,2]
[335206285,1723978256168,-500.0,0.00016986,2]
[335206286,1723978256178,-500.0,0.00016986,2]
[335206287,1723978256188,-500.0,0.00016986,2]
[335206288,1723978256198,-718.29,0.00016986,2]
[335206289,1723978256208,-500.0,0.00016986,2]
[335206290,1723978256218,-500.0,0.00016986,2]
[335206291,1723978256228,-500.0,0.00016986,2]
[335206292,1723978256238,-535.57,0.00016986,2]
[335206293,1723978256247,-500.0,0.00016986,2]
[335206294,1723978256257,-500.0,0.00016986,2]
[335206295,1723978256267,-500.0,0.00016986,2]
[335206296,1723978256277,-516.18,0.00016986,2]
[335206297,1723978256287,-500.0,0.00016986,2]
[335206298,1723978256297,-500.0,0.00016986,2]
[335206299,1723978256307,-500.0,0.00016986,2]
[335206300,1723978256317,-500.0,0.00016986,2]
[335206301,1723978256328,-500.0,0.00016986,2]
[335206302,1723978256337,-500.0,0.00016986,2]
[335206303,1723978256346,-665.79,0.00016986,2]
[335206304,1723978256357,-500.0,0.00016986,2]
[335206305,1723978256368,-500.0,0.00016986,2]
[335206306,1723978256379,-502.4220924,0.00016986,2]
[335206307,1723978256388,-500.0,0.00016986,2]
[335206308,1723978256398,-500.0,0.00016986,2]
[335206309,1723978256407,-500.0,0.00016986,2]
[335206310,1723978256417,-500.0,0.00016986,2]
[335206311,1723978256426,-383.34210581,0.00016986,2]
[335206312,1723978256436,-500.0,0.00016986,2]
[335206313,1723978256446,-729.61,0.00016986,2]
[335206314,1723978256456,-500.0,0.00016986,2]
[335206315,1723978256466,-500.0,0.00016986,2]
[335206316,1723978256475,-2005.0,0.00016986,10]
[335206317,1723978256485,-504.60094389,0.00016986,2]
[335206318,1723978256495,-500.0,0.00016986,2]
[335206319,1723978256504,-500.0,0.00016986,2]
[335206320,1723978256514,-1161.88,0.00016986,2]
[335206321,1723978256523,-155.97998199,0.00016986,2]
[335206322,1723978256533,-756.2,0.00016986,2]
[335206323,1723978256544,-638.91,0.00016986,2]
[335206324,1723978256554,-200.0,0.00016986,2]
[335206325,1723978256563,-500.0,0.00016986,2]
[335206326,1723978256575,-500.0,0.00016986,2]
[335206327,1723978256584,-500.0,0.00016986,2]
[335206328,1723978256594,-1355.38,0.00016986,2]
[335206329,1723978256604,-1357.84,0.00016986,2]
[335206330,1723978256614,-1193.77,0.00016986,2]
[335206331,1723978256624,-500.0,0.00016986,2]
[335206332,1723978256634,-500.0,0.00016986,2]
[335206333,1723978256644,-500.0,0.00016986,2]
[335206334,1723978256654,-500.0,0.00016986,2]
[335206335,1723978256663,-500.0,0.00016986,2]
[335206336,1723978256672,-500.0,0.00016986,2]
[335206337,1723978256682,-500.0,0.00016986,2]
[335206338,1723978256692,-500.0,0.00016986,2]
[335206339,1723978256702,-500.0,0.00016986,2]
[335206340,1723978256712,-500.0,0.00016986,2]
[335206341,1723978256722,-1133.98,0.00016986,2]
[335206342,1723978256731,-936.29,0.00016986,2]
[335206343,1723978256740,-500.0,0.00016986,2]
[335206344,1723978256750,-572.16363907,0.00016986,2]
[335206345,1723978256759,-596.44969579,0.00016986,2]
[335206346,1723978256769,-1319.09,0.00016986,2]
[335206347,1723978256778,-500.0,0.00016986,2]
[335206348,1723978256788,-748.11,0.00016986,2]
[335206349,1723978256798,-500.0,0.00016986,2]
[335206350,1723978256811,-500.0,0.00016986,2]
[335206351,1723978256821,-500.0,0.00016986,2]
[335206352,1723978256831,-642.67,0.00016986,2]
[335206353,1723978256842,-500.0,0.00016986,2]
[335206354,1723978256851,-1176.95,0.00016986,2]
[335206355,1723978256860,-500.0,0.00016986,2]
[335206356,1723978256871,-287.191698,0.00016986,2]
[335206357,1723978256880,-358.34557652,0.00016986,2]
[335206358,1723978256890,-534.25,0.00016986,2]
[335206359,1723978256901,-500.0,0.00016986,2]
[335206360,1723978256911,-414.96297049,0.00016986,2]
[335206361,1723978256921,-500.0,0.00016986,2]
[335206362,1723978256930,-500.0,0.00016986,2]
[335206363,1723978256940,-524.89954119,0.00016986,2]
[335206364,1723978256950,-500.0,0.00016986,2]
[335206365,1723978256960,-500.0,0.00016986,2]
[335206366,1723978256970,-1253.21,0.00016986,2]
[335206367,1723978256980,-711.27,0.00016986,2]
[335206368,1723978256990,-500.0,0.00016986,2]
[335206369,1723978256999,-500.0,0.00016986,2]
[335206370,1723978257008,-616.2,0.00016986,2]
[335206371,1723978257018,-500.0,0.00016986,2]
[335206372,1723978257028,-626.45,0.00016986,2]
[335206373,1723978257037,-500.0,0.00016986,2]
[335206374,1723978257047,-582.66,0.00016986,2]
[335206375,1723978257057,-500.0,0.00016986,2]
[335206376,1723978257067,-500.0,0.00016986,2]
[335206377,1723978257077,-3211.23,0.00016986,2]
[335206378,1723978257087,-476.9657291,0.00016986,2]
[335206379,1723978257097,-1782.31,0.00016986,2]
[335206380,1723978257106,-151.0,0.00016986,2]
[335206381,1723978257115,-612.68,0.00016986,2]
[335206382,1723978257125,-151.0,0.00016986,2]
[335206383,1723978257135,-500.0,0.00016986,2]
[335206384,1723978257144,-1330.07,0.00016986,2]
[335206385,1723978257154,-541.78,0.00016986,2]
[335206386,1723978257162,-151.0,0.00016986,2]
[335206387,1723978257171,-500.0,0.00016986,2]
[335206388,1723978257181,-151.0,0.00016986,2]
[335206389,1723978257190,-500.0,0.00016986,2]
[335206390,1723978257200,-500.0,0.00016986,2]
[335206391,1723978257210,-500.0,0.00016986,2]
[335206392,1723978257219,-861.07,0.00016986,2]
[335206393,1723978257229,-500.0,0.00016986,2]
[335206394,1723978257239,-657.9,0.00016986,2]
[335206395,1723978257249,-643.82,0.00016986,2]
[335206396,1723978257259,-500.0,0.00016986,2]
[335206397,1723978257268,-611.64,0.00016986,2]
[335206398,1723978257278,-500.0,0.00016986,2]
[335206399,1723978257287,-500.0,0.00016986,2]
[335206400,1723978257297,-6977.86,0.00016986,2]
[335206401,1723978257306,-243.73590385,0.00016986,2]
[335206402,1723978257316,-500.0,0.00016986,2]
[335206403,1723978257328,-931.16,0.00016986,2]
[335206404,1723978257337,-500.0,0.00016986,2]
[335206405,1723978257347,-2007.9,0.00016986,2]
[335206406,1723978257357,-1023.26,0.00016986,2]
[335206407,1723978257366,-500.0,0.00016986,2]
[335206408,1723978257376,-500.0,0.00016986,2]
[335206409,1723978257385,-500.0,0.00016986,2]
[335206410,1723978257395,-500.0,0.00016986,2]
[335206411,1723978257566,-931.18,0.00016986,2]
[335206412,1723978257578,-500.0,0.00016986,2]
[335206413,1723978257587,-500.0,0.00016986,2]
[335206414,1723978257597,-500.0,0.00016986,2]
[335206415,1723978257607,-500.0,0.00016986,2]
[335206416,1723978257616,-1081.56,0.00016986,2]
[335206417,1723978257626,-500.0,0.00016986,2]
[335206418,1723978257635,-2055.66,0.00016986,2]
[335206419,1723978257645,-500.0,0.00016986,2]
[335206420,1723978257655,-516.68,0.00016986,2]
[335206421,1723978257664,-500.0,0.00016986,2]
[335206422,1723978257674,-1185.13,0.00016986,2]
[335206423,1723978257684,-697.34,0.00016986,2]
[335206424,1723978257694,-506.11519574,0.00016986,2]
[335206425,1723978257703,-500.0,0.00016986,2]
[335206426,1723978257713,-500.0,0.00016986,2]
[335206427,1723978257723,-500.0,0.00016986,2]
[335206428,1723978257732,-500.0,0.00016986,2]
[335206429,1723978257743,-1015.84,0.00016986,2]
[335206430,1723978257752,-891.51,0.00016986,2]
[335206431,1723978257762,-500.0,0.00016986,2]
[335206432,1723978257772,-848.05,0.00016986,2]
[335206433,1723978257782,-709.79,0.00016986,2]
[335206434,1723978257793,-635.5952939,0.00016986,2]
[335206435,1723978257805,-957.04,0.00016986,2]
[335206436,1723978257814,-500.0,0.00016986,2]
[335206437,1723978257826,-500.0,0.00016986,2]
[335206438,1723978257837,-684.6,0.00016986,2]
[335206439,1723978257847,-729.94,0.00016986,2]
[335206440,1723978257858,-677.81,0.00016986,2]
[335206441,1723978257868,-780.04,0.00016986,2]
[335206442,1723978257880,-500.0,0.00016986,2]
[335206443,1723978257890,-500.0,0.00016986,2]
[335206444,1723978257899,-500.0,0.00016986,2]
[335206445,1723978257909,-783.85,0.00016986,2]
[335206446,1723978257919,-500.0,0.00016986,2]
[335206447,1723978257928,-929.77,0.00016986,2]
[335206448,1723978257937,-731.73,0.00016986,2]
[335206449,1723978257947,-500.0,0.00016986,2]
[335206450,1723978257956,-984.19,0.00016986,2]
[335206451,1723978257966,-500.0,0.00016986,2]
[335206452,1723978257976,-758.37,0.00016986,2]
[335206453,1723978257986,-215.265554,0.00016986,2]
[335206454,1723978257997,-918.67,0.00016986,2]
[335206455,1723978258007,-500.0,0.00016986,2]
[335206456,1723978258017,-500.0,0.00016986,2]
[335206457,1723978258026,-500.0,0.00016986,2]
[335206458,1723978258036,-215.265554,0.00016986,2]
[335206459,1723978258046,-500.0,0.00016986,2]
[335206460,1723978258056,-1070.69,0.00016986,2]
[335206461,1723978258068,-2012.69,0.00016986,2]
[335206462,1723978258079,-506.13,0.00016986,2]
[335206463,1723978258089,-500.0,0.00016986,2]
[335206464,1723978258099,-500.0,0.00016986,2]
[335206465,1723978258109,-865.11,0.00016986,2]
[335206466,1723978258120,-500.0,0.00016986,2]
[335206467,1723978258129,-814.32,0.00016986,2]
[335206468,1723978258139,-759.69,0.00016986,2]
[335206469,1723978258149,-500.0,0.00016986,2]
[335206470,1723978258158,-855.8,0.00016986,2]
[335206471,1723978258168,-500.0,0.00016986,2]
[335206472,1723978258178,-500.0,0.00016986,2]
[335206473,1723978258187,-500.0,0.00016986,2]
[335206474,1723978258197,-500.0,0.00016986,2]
[335206475,1723978258207,-500.0,0.00016986,2]
[335206476,1723978258217,-500.0,0.00016986,2]
[335206477,1723978258226,-500.0,0.00016986,2]
[335206478,1723978258236,-500.0,0.00016986,2]
[335206479,1723978258245,-716.73,0.00016986,2]
[335206480,1723978258255,-500.0,0.00016986,2]
[335206481,1723978258265,-500.0,0.00016986,2]
[335206482,1723978258274,-1245.16,0.00016986,2]
[335206483,1723978258285,-577.4,0.00016986,2]
[335206484,1723978258295,-695.79,0.00016986,2]
[335206485,1723978258304,-500.0,0.00016986,2]
[335206486,1723978258314,-375.707834,0.00016986,2]
[335206487,1723978258325,-154.71377951,0.00017,2]
[335206488,1723978258336,-591.27,0.0001726,2]
[335206489,1723978258345,-500.0,0.0001726,2]
[335206490,1723978258355,-500.0,0.0001726,2]
[335206491,1723978258364,-571.35,0.0001726,2]
[335206492,1723978258374,-504.61544333,0.0001726,2]
[335206493,1723978258385,-498.20948274,0.0001726,2]
[335206494,1723978258395,-500.0,0.0001726,2]
[335206495,1723978258405,-500.0,0.0001726,2]
[335206496,1723978258415,-547.52,0.0001726,2]
[335206497,1723978258424,-500.0,0.0001726,2]
[335206498,1723978258434,-500.0,0.0001726,2]
[335206499,1723978258445,-500.0,0.0001726,2]
[335206500,1723978258455,-500.0,0.0001726,2]
[335206501,1723978258465,-438.90798884,0.0001726,2]
[335206502,1723978258474,-500.0,0.0001726,2]
[335206503,1723978258484,-500.0,0.0001726,2]
[335206504,1723978258494,-500.0,0.0001726,2]
[335206505,1723978258504,-500.0,0.0001726,2]
[335206506,1723978258514,-634.2,0.0001726,2]
[335206507,1723978258523,-500.0,0.0001726,2]
[335206508,1723978258533,-500.0,0.0001726,2]
[335206509,1723978258543,-500.0,0.0001726,2]
[335206510,1723978258553,-500.0,0.0001726,2]
[335206511,1723978258563,-500.0,0.0001726,2]
[335206512,1723978258574,-500.0,0.0001726,2]
[335206513,1723978258584,-500.0,0.0001726,2]
[335206514,1723978258593,-500.0,0.0001726,2]
[335206515,1723978258603,-500.0,0.0001726,2]
[335206516,1723978258613,-500.0,0.0001726,2]
[335206517,1723978258623,-549.29323674,0.0001726,2]
[335206518,1723978258632,-500.0,0.0001726,2]
[335206519,1723978258642,-500.0,0.0001726,2]
[335206520,1723978258651,-500.0,0.0001726,2]
[335206521,1723978258661,-642.43,0.0001726,2]
[335206522,1723978258670,-500.0,0.0001726,2]
[335206523,1723978258680,-500.0,0.0001726,2]
[335206524,1723978258689,-500.0,0.0001726,2]
[335206525,1723978258699,-500.0,0.0001726,2]
[335206526,1723978258708,-888.39,0.0001726,2]
[335206527,1723978258718,-500.0,0.0001726,2]
[335206528,1723978258729,-500.0,0.0001726,2]
[335206529,1723978258739,-500.0,0.0001726,2]
[335206530,1723978258748,-500.0,0.0001726,2]
[335206531,1723978258758,-500.0,0.0001726,2]
[335206532,1723978258768,-500.0,0.0001726,2]
[335206533,1723978258777,-642.95,0.0001726,2]
[335206534,1723978258787,-275.21596254,0.0001726,2]
[335206535,1723978258797,-999.84,0.0001726,2]
[335206536,1723978258811,-255.68707378,0.0001726,2]
[335206537,1723978258822,-500.0,0.0001726,2]
[335206538,1723978258831,-711.27,0.0001726,2]
[335206539,1723978258842,-500.0,0.0001726,2]
[335206540,1723978258852,-518.23084564,0.0001726,2]
[335206541,1723978258862,-500.0,0.0001726,2]
[335206542,1723978258871,-500.0,0.0001726,2]
[335206543,1723978258882,-500.0,0.0001726,2]
[335206544,1723978258892,-500.0,0.0001726,2]
[335206545,1723978258901,-500.0,0.0001726,2]
[335206546,1723978258911,-802.34,0.0001726,2]
[335206547,1723978258920,-751.63,0.0001726,2]
[335206548,1723978258929,-500.0,0.0001726,2]
[335206549,1723978258939,-500.0,0.0001726,2]
[335206550,1723978258948,-508.92,0.0001726,2]
[335206551,1723978258958,-500.0,0.0001726,2]
[335206552,1723978258967,-500.0,0.0001726,2]
[335206553,1723978258976,-500.0,0.0001726,2]
[335206554,1723978258986,-500.0,0.0001726,2]
[335206555,1723978258996,-228.43666365,0.0001726,2]
[335206556,1723978298376,166.4,5.479e-05,2]
[335206557,1723978368885,154.83967222,6.641e-05,2]
[335206558,1723978371840,218.94236669,6.641e-05,2]
[335206559,1723978371932,154.69833824,6.641e-05,2]
[335206560,1723978371989,295.23903243,6.641e-05,2]
[335206561,1723978372239,223.44653164,6.641e-05,2]
[335206562,1723978373471,155.10685423,6.641e-05,2]
[335206563,1723978375783,154.74467129,6.641e-05,2]
[335206564,1723978376166,898.59338305,6.641e-05,2]
[335206565,1723978377589,159.93195339,6.641e-05,2]
[335206566,1723978381080,260.02260266,6.641e-05,2]
[335206567,1723978381188,155.1807002,6.641e-05,2]
[335206568,1723978384009,304.95420788,6.641e-05,2]
[335206569,1723978384742,154.89913263,6.641e-05,2]
[335206570,1723978385186,207.16858921,6.641e-05,2]
[335206571,1723978390444,155.04831057,6.641e-05,2]
[335206572,1723978390624,216.60734018,6.641e-05,2]
[335206573,1723978390870,4720.37412615,6.641e-05,2]
[335206574,1723978391677,281.07945898,6.641e-05,2]
[335206575,1723978391789,295.63166858,6.641e-05,2]
[335206576,1723978392654,495.09081333,6.641e-05,2]
[335206577,1723978393620,156.84074619,6.641e-05,2]
[335206578,1723978395180,180.36417415,6.641e-05,2]
[335206579,1723978396205,220.70237574,6.641e-05,2]
[335206580,1723978397584,155.00722846,6.641e-05,2]
[335206581,1723978403865,154.69833824,6.641e-05,2]
[335206583,1723978404531,199.52753091,6.641e-05,2]
[335206584,1723978407689,521.1431857,6.641e-05,2]
[335206585,1723978409004,219.90666814,6.641e-05,2]
[335206586,1723978410699,309.76695296,6.641e-05,2]
[335206587,1723978411812,158.63872921,6.641e-05,2]
[335206588,1723978413467,154.69833824,6.641e-05,2]
[335206589,1723978417155,797.50707528,6.641e-05,2]
[335206591,1723978517200,491.34091556,6.641e-05,2]
[335206592,1723978563887,24900.0,7.616e-05,2]
[335206593,1723978595931,166.4,5.479e-05,2]
[335206595,1723978754743,154.79103211,6.641e-05,2]
[335206596,1723978762833,309.39667648,6.641e-05,2]
[335206599,1723978895586,166.4,5.479e-05,2]
[335206600,1723978927685,534.68598613,6.641e-05,2]
[335206604,1723979049207,24900.0,7.458e-05,2]
[335206610,1723979196116,166.4,5.479e-05,2]
[335206612,1723979233153,-154.76015882,7.911e-05,2]
[335206613,1723979233176,-78.06171674,7.911e-05,2]
[335206616,1723979349155,-77.10945883,7.911e-05,2]
[335206617,1723979349179,-156.84074619,7.911e-05,2]
[335206618,1723979349202,-422.17784127,7.911e-05,2]
[335206619,1723979349225,-1791.30400561,7.919e-05,2]
[335206620,1723979349249,-250.0,8.349e-05,2]
[335206621,1723979349273,-250.0,8.372e-05,2]
[335206622,1723979349297,-229.52597313,8.395e-05,2]
[335206623,1723979359112,-20.47402687,8.395e-05,2]
[335206624,1723979359135,-250.0,8.418e-05,2]
[335206625,1723979359159,-250.0,8.441e-05,2]
[335206626,1723979359182,-250.0,8.463e-05,2]
[335206627,1723979359205,-250.0,8.486e-05,2]
[335206628,1723979359229,-250.0,8.509e-05,2]
[335206629,1723979359251,-396.07639382,8.52e-05,2]
[335206630,1723979359272,-300.0,8.52e-05,2]
[335206631,1723979359294,-300.0,8.52e-05,2]
[335206632,1723979359315,-36794.34685851,8.521e-05,2]
[335206633,1723979367175,-5612.93306839,8.521e-05,2]
[335206634,1723979367198,-7012.68235792,8.521e-05,2]
[335206635,1723979367220,-9658.15828806,8.521e-05,2]
[335206636,1723979367244,-250.0,8.532e-05,2]
[335206637,1723979367268,-250.0,8.555e-05,2]
[335206638,1723979367291,-250.0,8.578e-05,2]
[335206639,1723979367314,-250.0,8.601e-05,2]
[335206640,1723979367337,-250.0,8.624e-05,2]
[335206641,1723979367360,-250.0,8.647e-05,2]
[335206642,1723979367384,-250.0,8.67e-05,2]
[335206643,1723979367410,-250.0,8.692e-05,2]
[335206644,1723979367433,-250.0,8.715e-05,2]
[335206645,1723979367456,-250.0,8.738e-05,2]
[335206646,1723979367481,-154.79103211,8.761e-05,2]
[335206647,1723979367504,-250.0,8.761e-05,2]
[335206648,1723979367528,-250.0,8.784e-05,2]
[335206649,1723979367551,-420.0,9.372e-05,2]
[335206650,1723979367573,-420.0,9.372e-05,2]
[335206651,1723979367595,-154.79103211,9.524e-05,2]
[335206652,1723979367617,-170.581208,9.626e-05,2]
[335206653,1723979367639,-170.581208,9.628e-05,2]
[335206654,1723979367660,-170.581208,9.631e-05,2]
[335206655,1723979367681,-170.581208,9.633e-05,2]
[335206656,1723979367702,-170.581208,9.636e-05,2]
[335206657,1723979367724,-170.581208,9.638e-05,2]
[335206658,1723979367746,-170.581208,9.641e-05,2]
[335206659,1723979367768,-170.581208,9.643e-05,2]
[335206660,1723979367789,-170.581208,9.646e-05,2]
[335206661,1723979367811,-170.581208,9.648e-05,2]
[335206662,1723979367835,-170.581208,9.651e-05,2]
[335206663,1723979367856,-170.581208,9.653e-05,2]
[335206664,1723979367879,-170.581208,9.656e-05,2]
[335206665,1723979367908,-170.581208,9.658e-05,2]
[335206666,1723979367930,-170.581208,9.661e-05,2]
[335206667,1723979367953,-170.581208,9.664e-05,2]
[335206668,1723979367975,-170.581208,9.666e-05,2]
[335206669,1723979367997,-170.581208,9.669e-05,2]
[335206670,1723979368018,-170.581208,9.671e-05,2]
[335206671,1723979368040,-170.581208,9.674e-05,2]
[335206672,1723979368061,-288.24477057,0.0001,2]